bitfinex/quotes_SOLUSD_20251006
["timestamp","ask_amount","ask_price","bid_price","bid_amount"]
[1759745071655,2.80037219,233.51,233.48,3.58075119]
[1759745071871,2.80037219,233.5,233.48,3.58075119]
[1759745072059,2.08037219,233.49,233.46,3.58075119]
[1759745072353,2.08037219,233.48,233.46,3.58075119]
[1759745072557,2.80037219,233.49,233.45,33.74075119]
[1759745072762,2.80037219,233.49,233.45,34.42075119]
[1759745072931,79.1,233.51,233.45,0.2]
[1759745072932,17.24023641,233.46,233.45,0.2]
[1759745073332,17.96023641,233.46,233.45,0.2]
[1759745073856,6.3637612,233.46,233.45,0.2]
[1759745074031,4.28338901,233.46,233.45,0.2]
[1759745074233,4.28338901,233.46,233.45,0.88]
[1759745074448,4.28338901,233.46,233.45,0.2]
[1759745075255,1.33227022,233.46,233.45,0.2]
[1759745077137,5.61565923,233.46,233.45,0.2]
[1759745080547,4.28338901,233.46,233.45,0.88]
[1759745080861,4.28338901,233.46,233.45,0.2]
[1759745081448,5.61565923,233.46,233.45,0.2]
[1759745082160,4.28338901,233.46,233.45,0.2]
[1759745082362,5.61565923,233.46,233.45,0.2]
[1759745089053,6.27565923,233.46,233.45,0.2]
[1759745089755,5.61565923,233.46,233.45,0.2]
[1759745090060,35.59565923,233.46,233.45,0.2]
[1759745093556,34.26338901,233.46,233.45,0.2]
[1759745093957,34.26338901,233.46,233.45,0.92]
[1759745094271,34.26338901,233.46,233.45,0.2]
[1759745096364,36.25565923,233.46,233.45,0.2]
[1759745096962,35.59565923,233.46,233.45,0.2]
[1759745097170,36.23565923,233.46,233.45,0.2]
[1759745097376,35.57565923,233.46,233.45,0.2]
[1759745098173,36.23565923,233.46,233.45,0.2]
[1759745098983,35.57565923,233.46,233.45,0.2]
[1759745099853,47.11213444,233.46,233.45,1e-08]
[1759745100253,50.69288563,233.46,233.45,1e-08]
[1759745100673,10.87647521,233.41,233.33,0.72]
[1759745100851,1.33227022,233.34,233.31,0.2]
[1759745101249,1.33227022,233.34,233.31,0.92]
[1759745101553,1.33227022,233.34,233.31,0.2]
[1759745102074,4.28577551,233.33,233.32,0.72]
[1759745102270,4.28577551,233.33,233.31,0.2]
[1759745103569,35.59804573,233.33,233.31,0.2]
[1759745104660,5.61822941,233.32,233.31,0.2]
[1759745106381,85.37822941,233.32,233.31,0.2]
[1759745106566,96.25470462,233.32,233.31,0.2]
[1759745106770,17.15470462,233.32,233.31,1e-08]
[1759745109562,47.13470462,233.32,233.31,1e-08]
[1759745109865,46.47470462,233.32,233.31,1e-08]
[1759745110065,47.13470462,233.32,233.31,1e-08]
[1759745111087,48.85066952,233.32,233.31,1e-08]
[1759745112985,18.21066952,233.32,233.31,1e-08]
[1759745113200,18.21066952,233.32,233.31,0.72000001]
[1759745113201,34.26595919,233.32,233.31,0.72000001]
[1759745113690,34.26578769,233.33,233.31,0.72000001]
[1759745114690,34.26578769,233.33,233.31,1e-08]
[1759745114870,1.33227022,233.32,233.31,1e-08]
[1759745115468,5.61822941,233.32,233.31,1e-08]
[1759745115795,35.59822941,233.32,233.31,0.72000001]
[1759745116900,35.59822941,233.32,233.31,1e-08]
[1759745117284,47.13470462,233.32,233.31,1e-08]
[1759745117483,48.85081676,233.32,233.31,1e-08]
[1759745117871,37.97434155,233.32,233.31,1e-08]
[1759745118494,48.85081676,233.32,233.31,1e-08]
[1759745120776,47.51854654,233.32,233.31,1e-08]
[1759745120979,48.85081676,233.32,233.31,1e-08]
[1759745127206,10.87647521,233.31,233.29,1e-08]
[1759745127382,52.11227022,233.3,233.29,1e-08]
[1759745127574,52.78227022,233.3,233.29,1e-08]
[1759745127977,54.49845599,233.3,233.29,1e-08]
[1759745128585,58.7847826,233.3,233.29,1e-08]
[1759745131991,4.28632661,233.3,233.29,0.66000001]
[1759745132372,10.71489799,233.32,233.29,0.66000001]
[1759745132778,29.98,233.31,233.29,0.66000001]
[1759745134390,4.28632661,233.3,233.29,0.66000001]
[1759745138528,6.37061757,233.3,233.29,1e-08]
[1759745141318,6.37061757,233.3,233.29,0.68000001]
[1759745141319,4.28632661,233.3,233.29,0.68000001]
[1759745142513,6.37061757,233.3,233.29,0.68000001]
[1759745142704,6.37061757,233.3,233.29,1e-08]
[1759745144005,4.28632661,233.3,233.29,1e-08]
[1759745144202,6.37061757,233.3,233.29,1e-08]
[1759745145218,6.37061757,233.3,233.29,0.68000001]
[1759745146121,4.28632661,233.3,233.29,0.68000001]
[1759745151801,6.37061757,233.3,233.29,0.68000001]
[1759745152106,6.37061757,233.3,233.29,1e-08]
[1759745152511,6.37061757,233.3,233.29,0.66000001]
[1759745153704,6.37061757,233.3,233.29,1e-08]
[1759745154507,6.37061757,233.3,233.29,0.66000001]
[1759745155329,6.37061757,233.3,233.29,1e-08]
[1759745155623,17.91709278,233.3,233.29,1e-08]
[1759745157704,17.24709278,233.3,233.29,1e-08]
[1759745157907,4.28632661,233.3,233.29,0.66000001]
[1759745160427,29.98,233.31,233.29,0.66000001]
[1759745160625,29.98,233.35,233.29,0.66000001]
[1759745161026,29.98,233.35,233.29,4.24267006]
[1759745161221,29.98,233.35,233.3,0.66]
[1759745161614,2.08429096,233.34,233.3,0.66]
[1759745162008,2.08429096,233.32,233.29,1e-08]
[1759745162212,4.2861429,233.31,233.3,0.66]
[1759745162536,29.98,233.33,233.3,0.66]
[1759745162717,4.28559184,233.34,233.3,0.66]
[1759745163308,4.28559184,233.34,233.31,0.66]
[1759745163514,14.99957144,233.34,233.31,0.66]
[1759745164422,2.08429096,233.33,233.29,1e-08]
[1759745164629,2.75429096,233.33,233.29,1e-08]
[1759745165435,2.08429096,233.33,233.3,0.66]
[1759745165739,14.99957144,233.34,233.31,0.66]
[1759745166071,3.78267005,233.38,233.32,0.66]
[1759745166214,34.24485731,233.38,233.32,0.66]
[1759745166412,29.96,233.41,233.33,3.58267005]
[1759745166636,29.96,233.41,233.34,4.24267005]
[1759745166843,32.04429096,233.41,233.35,0.66]
[1759745167049,2.08429096,233.38,233.33,3.58267005]
[1759745167221,2.08429096,233.38,233.31,0.66]
[1759745167222,2.08429096,233.35,233.31,0.66]
[1759745167834,0.67,233.37,233.29,3.58267006]
[1759745168022,2.08429096,233.35,233.32,0.66]
[1759745168226,2.08429096,233.36,233.33,0.66]
[1759745168727,6.36969914,233.35,233.33,0.66]
[1759745168930,4.28540818,233.35,233.29,3.58267006]
[1759745169140,4.28540818,233.35,233.3,0.66]
[1759745169141,2.08429096,233.34,233.3,0.66]
[1759745169319,2.08429096,233.33,233.3,0.66]
[1759745170054,2.08429096,233.33,233.29,3.58267006]
[1759745170223,14.99892864,233.35,233.3,0.66]
[1759745170424,17.0832196,233.35,233.3,0.66]
[1759745170749,17.0832196,233.35,233.31,0.66]
[1759745171846,12.79781142,233.35,233.31,0.66]
[1759745172959,10.71352046,233.35,233.32,0.66]
[1759745173156,4.28522454,233.36,233.32,0.66]
[1759745173739,4.28504092,233.37,233.33,0.66]
[1759745174244,6.36859754,233.41,233.33,0.66]
[1759745174650,4.28430658,233.41,233.33,0.66]
[1759745175142,6.36859754,233.41,233.33,0.66]
[1759745175557,6.36859754,233.41,233.33,4.94577221]
[1759745175759,6.36859754,233.41,233.34,0.66]
[1759745176959,10.87647521,233.44,233.34,4.9455422]
[1759745176960,2.08429096,233.44,233.34,4.9455422]
[1759745177261,2.08429096,233.44,233.35,0.66]
[1759745177462,4.28375599,233.44,233.37,20.8]
[1759745177676,4.28375599,233.44,233.38,0.66]
[1759745179482,6.36804695,233.44,233.38,0.66]
[1759745180772,4.28375599,233.44,233.38,0.66]
[1759745181168,4.28345232,233.46,233.39,4.28467372]
[1759745181480,4.28345232,233.46,233.4,0.66]
[1759745181856,4.28338901,233.46,233.4,0.66]
[1759745183979,2.08429096,233.45,233.4,0.66]
[1759745184156,2.78429096,233.45,233.4,0.66]
[1759745185173,4.28375599,233.44,233.4,0.66]
[1759745185673,4.28375599,233.44,233.38,25.08485414]
[1759745185674,4.28375599,233.44,233.41,0.66]
[1759745186065,2.08429096,233.46,233.41,0.66]
[1759745186380,2.08429096,233.46,233.42,0.66]
[1759745186756,2.78429096,233.46,233.42,0.66]
[1759745186958,2.78429096,233.46,233.41,0.66]
[1759745187158,7.06767997,233.46,233.41,0.66]
[1759745187679,7.06767997,233.46,233.42,0.66]
[1759745187680,4.98338901,233.46,233.42,0.66]
[1759745189082,4.28338901,233.46,233.42,0.66]
[1759745189274,81.18429096,233.49,233.43,0.66]
[1759745189657,79.1,233.49,233.43,0.66]
[1759745190783,79.1,233.49,233.39,44.93635802]
[1759745190784,2.08429096,233.47,233.41,0.66]
[1759745191086,2.08429096,233.46,233.41,0.66]
[1759745191269,2.78429096,233.46,233.41,0.66]
[1759745191775,0.7,233.45,233.4,29.94]
[1759745192160,0.7,233.45,233.4,0.66]
[1759745192361,0.7,233.45,233.34,12.91848174]
[1759745192362,2.08429096,233.41,233.34,0.66]
[1759745192575,2.08429096,233.38,233.32,0.66]
[1759745192769,4.28504092,233.37,233.33,29.94]
[1759745192968,4.28504092,233.37,233.34,0.66]
[1759745194365,4.28472884,233.39,233.34,0.66]
[1759745194781,4.95472884,233.39,233.34,0.66]
[1759745195792,4.95472884,233.39,233.29,12.86201205]
[1759745195793,2.08429096,233.37,233.31,0.72]
[1759745195990,2.08429096,233.34,233.31,29.94]
[1759745196195,14.99641314,233.39,233.29,1e-08]
[1759745196196,2.75429096,233.33,233.29,1e-08]
[1759745196866,0.67,233.32,233.29,1e-08]
[1759745197194,4.2861429,233.31,233.29,1e-08]
[1759745197486,4.9561429,233.31,233.29,1e-08]
[1759745198377,6.37025015,233.32,233.29,1e-08]
[1759745198689,0.67,233.31,233.29,1e-08]
[1759745200280,4.28632661,233.3,233.29,1e-08]
[1759745200790,4.95632661,233.3,233.29,1e-08]
[1759745202396,6.29019896,233.3,233.29,1e-08]
[1759745202971,4.95632661,233.3,233.29,1e-08]
[1759745203275,6.29019896,233.3,233.29,1e-08]
[1759745206080,4.95632661,233.3,233.29,1e-08]
[1759745206285,6.29019896,233.3,233.29,1e-08]
[1759745206671,5.62019896,233.3,233.29,1e-08]
[1759745206876,4.28632661,233.3,233.29,1e-08]
[1759745208882,4.2861429,233.31,233.29,1e-08]
[1759745213695,1.33387235,233.31,233.29,1e-08]
[1759745214402,5.61983154,233.32,233.29,1e-08]
[1759745215688,6.33983154,233.32,233.29,1e-08]
[1759745215894,1.33387235,233.31,233.29,1e-08]
[1759745217410,2.05387235,233.3,233.29,1e-08]
[1759745218013,6.34019896,233.3,233.29,1e-08]
[1759745222202,5.00632661,233.3,233.29,1e-08]
[1759745222419,6.34019896,233.3,233.29,1e-08]
[1759745222621,17.21667417,233.3,233.29,1e-08]
[1759745222924,17.21667417,233.3,233.27,0.2]
[1759745222925,31.67647521,233.28,233.27,0.2]
[1759745223125,31.67647521,233.28,233.27,1e-08]
[1759745223126,42.17034756,233.28,233.27,1e-08]
[1759745223318,47.17704166,233.28,233.27,1e-08]
[1759745224508,10.87647521,233.27,233.25,1e-08]
[1759745224835,1.33387235,233.26,233.25,1e-08]
[1759745225030,12.93034756,233.26,233.25,1e-08]
[1759745225327,17.2174092,233.26,233.25,1e-08]
[1759745225541,38.0174092,233.26,233.25,1e-08]
[1759745225725,17.2174092,233.26,233.25,1e-08]
[1759745225904,15.88353685,233.26,233.25,1e-08]
[1759745226216,47.1774092,233.26,233.25,1e-08]
[1759745227030,10.87647521,233.25,233.24,1e-08]
[1759745227238,12.21034756,233.25,233.24,1e-08]
[1759745227419,17.217593,233.25,233.24,1e-08]
[1759745228744,17.217593,233.25,233.12,0.2]
[1759745228745,31.67647521,233.22,233.21,1e-08]
[1759745228920,68.30583696,233.22,233.21,1e-08]
[1759745229121,69.02583696,233.22,233.21,1e-08]
[1759745229544,67.97814448,233.22,233.21,1e-08]
[1759745232041,69.31201683,233.22,233.21,1e-08]
[1759745240451,73.31363388,233.22,233.21,1e-08]
[1759745241127,43.35363388,233.22,233.21,1e-08]
[1759745241331,73.31363388,233.22,233.21,1e-08]
[1759745242756,72.59363388,233.22,233.21,1e-08]
[1759745243254,73.25363388,233.22,233.21,1e-08]
[1759745245457,72.59363388,233.22,233.21,1e-08]
[1759745246157,73.25363388,233.22,233.21,1e-08]
[1759745247133,72.59363388,233.22,233.21,1e-08]
[1759745248344,73.25363388,233.22,233.21,1e-08]
[1759745248736,72.59363388,233.22,233.21,1e-08]
[1759745249159,73.25363388,233.22,233.21,1e-08]
[1759745251660,72.59363388,233.22,233.21,1e-08]
[1759745252958,31.67647521,233.18,233.12,0.2]
[1759745253160,20.8,233.14,233.12,0.2]
[1759745253350,52.09387235,233.14,233.12,0.2]
[1759745253949,1.33387235,233.13,233.12,0.2]
[1759745254355,52.09387235,233.14,233.12,0.2]
[1759745254862,56.3831406,233.14,233.13,0.68]
[1759745255054,55.04926825,233.14,233.13,0.68]
[1759745258550,56.3831406,233.14,233.13,0.68]
[1759745260350,56.3831406,233.14,233.12,0.2]
[1759745260351,67.25961581,233.14,233.12,0.2]
[1759745260570,1.33387235,233.13,233.12,0.2]
[1759745261074,12.96451311,233.13,233.12,0.2]
[1759745261254,13.65451311,233.13,233.12,0.2]
[1759745261655,13.65451311,233.13,233.1,0.2]
[1759745261856,33.76451311,233.11,233.1,0.2]
[1759745262158,31.67647521,233.11,233.1,0.2]
[1759745262366,33.76451311,233.11,233.1,0.2]
[1759745262758,38.05433336,233.11,233.1,0.2]
[1759745263777,68.01433336,233.11,233.1,0.2]
[1759745264758,65.92629546,233.11,233.1,0.2]
[1759745265067,68.01433336,233.11,233.1,0.2]
[1759745265254,38.05433336,233.11,233.1,0.2]
[1759745265455,66.61629546,233.11,233.1,0.2]
[1759745265761,68.01433336,233.11,233.1,0.2]
[1759745266074,68.01433336,233.11,233.1,0.88]
[1759745266262,68.01433336,233.11,233.1,0.2]
[1759745266665,68.70433336,233.11,233.1,0.2]
[1759745266980,38.74433336,233.11,233.1,0.2]
[1759745267285,68.70433336,233.11,233.1,0.2]
[1759745268158,66.61629546,233.11,233.1,0.2]
[1759745268357,68.70433336,233.11,233.1,0.2]
[1759745268682,68.70433336,233.11,233.09,0.2]
[1759745268978,12.96451311,233.1,233.09,0.2]
[1759745269483,13.64451311,233.1,233.09,0.2]
[1759745269781,4.2903724,233.08,233.05,0.2]
[1759745269958,36.3384103,233.08,233.05,0.2]
[1759745270158,37.0184103,233.08,233.05,0.2]
[1759745271166,47.89488551,233.08,233.05,0.2]
[1759745271564,45.80684761,233.08,233.05,0.2]
[1759745271776,47.89488551,233.08,233.05,0.2]
[1759745273284,47.21488551,233.08,233.05,0.2]
[1759745274690,47.21488551,233.08,233.05,0.88]
[1759745278390,45.12684761,233.08,233.05,0.88]
[1759745278565,4.2903724,233.08,233.07,0.88]
[1759745278773,29.96,233.08,233.07,0.88]
[1759745280294,34.2503724,233.08,233.07,0.88]
[1759745280694,29.96,233.08,233.07,0.88]
[1759745280898,29.96,233.09,233.07,0.88]
[1759745281075,29.96,233.09,233.08,0.68]
[1759745281687,4.29014572,233.1,233.08,0.68]
[1759745281688,29.96,233.1,233.08,0.68]
[1759745281998,20.8,233.11,233.08,0.68]
[1759745282171,0.68,233.24,233.08,0.68]
[1759745282374,6.37546715,233.24,233.09,15.01565917]
[1759745282572,6.37546715,233.24,233.11,3.58267005]
[1759745282774,6.37546715,233.24,233.12,4.26267005]
[1759745282775,4.28742925,233.24,233.12,4.26267005]
[1759745282982,2.0880379,233.22,233.13,0.68]
[1759745283183,10.87647521,233.23,233.13,0.68]
[1759745283383,4.28742925,233.24,233.14,3.58267005]
[1759745283589,2.0880379,233.18,233.15,0.68]
[1759745283897,2.0880379,233.17,233.15,0.68]
[1759745284080,2.0880379,233.17,233.13,0.68]
[1759745284397,4.28890032,233.16,233.13,0.68]
[1759745284586,4.28890032,233.16,233.14,0.68]
[1759745284777,4.28890032,233.16,233.15,0.68]
[1759745285403,58.63566424,233.16,233.08,3.58267005]
[1759745285577,58.63566424,233.16,233.07,13.07526018]
[1759745285578,34.26890032,233.16,233.1,0.68]
[1759745286600,2.0880379,233.11,233.08,0.68]
[1759745286779,2.0880379,233.12,233.09,0.68]
[1759745286979,2.0880379,233.12,233.1,0.68]
[1759745287387,12.96451311,233.15,233.11,0.68]
[1759745287702,2.0880379,233.15,233.11,0.68]
[1759745288500,4.28926825,233.14,233.12,0.68]
[1759745289390,4.28926825,233.14,233.07,4.49050232]
[1759745289391,4.28926825,233.14,233.07,0.2]
[1759745289576,15.01243887,233.14,233.07,0.2]
[1759745289776,2.0880379,233.11,233.07,0.88]
[1759745289981,2.0880379,233.1,233.07,0.88]
[1759745290177,2.0880379,233.11,233.07,0.88]
[1759745290792,2.0880379,233.08,233.07,0.2]
[1759745290983,2.0880379,233.09,233.07,0.2]
[1759745291496,2.0880379,233.11,233.08,0.68]
[1759745292406,12.81240619,233.12,233.08,0.68]
[1759745292704,6.37785815,233.11,233.07,0.2]
[1759745293001,6.37785815,233.11,233.08,0.68]
[1759745293196,2.0880379,233.12,233.09,0.68]
[1759745293397,32.1080379,233.13,233.1,0.68]
[1759745293812,4.28963623,233.12,233.1,0.68]
[1759745293993,4.28963623,233.12,233.11,0.68]
[1759745294304,4.28963623,233.12,233.09,0.68]
[1759745294510,4.28963623,233.12,233.1,0.68]
[1759745295290,4.28963623,233.12,233.07,0.2]
[1759745295291,4.28963623,233.12,233.08,0.68]
[1759745295697,2.0880379,233.11,233.07,0.2]
[1759745295904,2.0880379,233.1,233.07,0.2]
[1759745296305,2.0880379,233.1,233.07,0.88]
[1759745296613,2.7680379,233.11,233.07,0.88]
[1759745297007,22.8880379,233.14,233.08,0.68]
[1759745297193,20.8,233.14,233.08,0.68]
[1759745297392,22.8880379,233.14,233.08,0.68]
[1759745297808,11.55647521,233.16,233.08,0.68]
[1759745297809,34.30914887,233.15,233.08,4.97028735]
[1759745298004,4.28914887,233.15,233.09,0.66]
[1759745298507,6.37718677,233.15,233.09,0.66]
[1759745299908,6.37718677,233.15,233.09,4.95005656]
[1759745300091,7.04694631,233.16,233.1,0.66]
[1759745301311,6.37675853,233.17,233.1,4.9499588]
[1759745301513,20.8,233.19,233.11,0.66]
[1759745301702,25.08835645,233.19,233.11,0.66]
[1759745302116,4.28835645,233.19,233.11,0.66]
[1759745302298,4.28835645,233.19,233.12,3.58267005]
[1759745302616,4.28835645,233.19,233.11,0.66]
[1759745302617,4.28835645,233.19,233.13,0.66]
[1759745302913,4.95835645,233.19,233.13,0.66]
[1759745303305,7.04639435,233.19,233.13,0.66]
[1759745305318,2.0880379,233.18,233.13,0.66]
[1759745305619,0.67,233.18,233.13,0.66]
[1759745306414,4.95859116,233.18,233.13,0.66]
[1759745307089,0.67,233.17,233.13,0.66]
[1759745308809,0.67,233.17,233.13,4.9494171]
[1759745309118,4.28859116,233.18,233.13,4.9494171]
[1759745309414,4.95859116,233.18,233.13,4.9494171]
[1759745309598,0.67,233.17,233.13,0.66]
[1759745310026,0.67,233.16,233.11,0.66]
[1759745310194,0.67,233.15,233.11,0.66]
[1759745310394,0.67,233.14,233.1,4.28999674]
[1759745310595,0.67,233.16,233.11,0.66]
[1759745310795,2.0880379,233.17,233.1,4.29000429]
[1759745311005,2.0880379,233.17,233.07,0.2]
[1759745311006,2.0880379,233.11,233.07,0.2]
[1759745311205,2.0880379,233.12,233.07,0.86]
[1759745311499,0.67,233.11,233.07,0.86]
[1759745312524,4.95929782,233.14,233.08,0.66]
[1759745313821,2.0880379,233.09,233.07,0.2]
[1759745314017,2.0880379,233.08,233.07,0.2]
[1759745314208,7.0784103,233.08,233.07,0.2]
[1759745315125,2.7880379,233.08,233.07,0.2]
[1759745315424,2.0880379,233.1,233.07,0.2]
[1759745315604,6.37804864,233.1,233.07,0.2]
[1759745315803,0.7,233.09,233.07,0.2]
[1759745316017,0.7,233.08,233.07,0.2]
[1759745316220,4.9903724,233.08,233.07,0.2]
[1759745318113,7.0784103,233.08,233.07,0.2]
[1759745319729,4.2903724,233.08,233.07,0.2]
[1759745320926,4.29024054,233.09,233.07,0.2]
[1759745321227,79.1,233.11,233.07,0.92]
[1759745321629,1.3363626,233.12,233.08,0.72]
[1759745321926,1.3363626,233.13,233.09,0.72]
[1759745322410,5.62563085,233.14,233.09,0.72]
[1759745322610,5.62507898,233.17,233.1,0.72]
[1759745322824,0.7,233.18,233.1,21.52]
[1759745322825,4.2886432,233.18,233.1,21.52]
[1759745323024,4.2886432,233.18,233.11,5.00982025]
[1759745323237,4.2886432,233.18,233.12,0.72]
[1759745323435,4.9886432,233.18,233.12,0.72]
[1759745323734,6.3250058,233.18,233.12,0.72]
[1759745324234,1.3363626,233.17,233.1,21.52]
[1759745324415,1.3363626,233.17,233.11,0.72]
[1759745324851,4.9886432,233.18,233.11,0.72]
[1759745325007,6.3250058,233.18,233.11,5.00978159]
[1759745326011,6.3250058,233.18,233.11,0.72]
[1759745326213,1.3363626,233.17,233.11,0.72]
[1759745326714,4.9886432,233.18,233.09,3.58267005]
[1759745326715,1.3363626,233.12,233.09,3.58267005]
[1759745326914,1.3363626,233.1,233.08,3.58267005]
[1759745327222,1.3363626,233.1,233.07,0.2]
[1759745327223,0.7,233.09,233.07,3.78267005]
[1759745327425,0.7,233.09,233.07,0.2]
[1759745327812,5.62651081,233.1,233.07,0.2]
[1759745328214,6.32651081,233.1,233.07,0.2]
[1759745328441,6.32651081,233.1,233.07,3.78267005]
[1759745328815,6.32651081,233.1,233.07,0.2]
[1759745329015,6.32651081,233.1,233.07,3.78267005]
[1759745329636,0.7,233.09,233.07,3.78267005]
[1759745330634,0.7,233.09,233.07,0.2]
[1759745330842,5.62651081,233.1,233.07,0.2]
[1759745331045,6.32651081,233.1,233.07,0.2]
[1759745331410,20.8,233.14,233.07,0.2]
[1759745331619,2.0363626,233.1,233.07,0.2]
[1759745332041,1.3363626,233.1,233.07,0.2]
[1759745332218,1.3363626,233.08,233.07,0.2]
[1759745332626,2.0363626,233.08,233.07,0.2]
[1759745333223,4.9903724,233.08,233.07,0.2]
[1759745333823,4.2903724,233.08,233.07,0.2]
[1759745335144,5.62652331,233.1,233.07,0.89]
[1759745335339,5.62652331,233.1,233.07,0.2]
[1759745335545,6.32652331,233.1,233.07,0.2]
[1759745336642,0.7,233.09,233.07,0.2]
[1759745338841,4.99031603,233.09,233.07,0.2]
[1759745339746,2.0363626,233.08,233.07,0.2]
[1759745340938,6.326735,233.08,233.07,0.2]
[1759745343931,4.2903724,233.08,233.07,0.2]
[1759745344642,4.9903724,233.08,233.07,0.2]
[1759745345827,6.326735,233.08,233.07,0.2]
[1759745346640,47.20321021,233.08,233.07,1e-08]
[1759745347334,35.0103724,233.08,233.07,1e-08]
[1759745347547,36.346735,233.08,233.07,1e-08]
[1759745348848,4.2903724,233.08,233.07,1e-08]
[1759745350530,5.626735,233.08,233.07,1e-08]
[1759745351346,4.2903724,233.08,233.07,1e-08]
[1759745351759,4.289885,233.11,233.07,0.69000001]
[1759745351948,1.3363626,233.11,233.07,0.69000001]
[1759745352472,4.29000429,233.1,233.07,0.69000001]
[1759745352763,4.29000429,233.1,233.07,1e-08]
[1759745354061,5.62636689,233.1,233.07,1e-08]
[1759745354865,6.32636689,233.1,233.07,1e-08]
[1759745355075,5.62636689,233.1,233.07,1e-08]
[1759745355470,6.32636689,233.1,233.07,1e-08]
[1759745356063,15.01501501,233.1,233.07,1e-08]
[1759745356252,22.1363626,233.08,233.07,1e-08]
[1759745356855,38.00321021,233.08,233.07,1e-08]
[1759745358964,27.126735,233.08,233.07,1e-08]
[1759745360472,38.00321021,233.08,233.07,1e-08]
[1759745360675,37.30321021,233.08,233.07,1e-08]
[1759745360869,68.00321021,233.08,233.07,1e-08]
[1759745367170,66.66684761,233.08,233.07,1e-08]
[1759745367385,68.00321021,233.08,233.07,1e-08]
[1759745372278,89.97647521,233.07,233.05,1e-08]
[1759745372593,52.1163626,233.06,233.05,1e-08]
[1759745372794,52.7963626,233.06,233.05,1e-08]
[1759745373590,57.08710318,233.06,233.05,1e-08]
[1759745376192,10.87647521,233.05,233.04,1e-08]
[1759745376691,12.90283781,233.05,233.04,1e-08]
[1759745378093,17.1937625,233.05,233.04,1e-08]
[1759745383187,17.9472943,233.05,233.04,1e-08]
[1759745384496,47.9272943,233.05,233.04,1e-08]
[1759745387398,17.9472943,233.05,233.04,1e-08]
[1759745387600,47.9272943,233.05,233.04,1e-08]
[1759745392690,47.8872943,233.05,233.04,1e-08]
[1759745404131,31.67647521,233.03,233.02,1e-08]
[1759745404427,63.74636961,233.03,233.02,1e-08]
[1759745404629,64.39636961,233.03,233.02,1e-08]
[1759745405016,68.03766257,233.03,233.02,1e-08]
[1759745405517,68.68766257,233.03,233.02,1e-08]
[1759745405721,68.03766257,233.03,233.02,1e-08]
[1759745406530,68.68766257,233.03,233.02,1e-08]
[1759745409338,57.81118736,233.03,233.02,1e-08]
[1759745411750,68.68766257,233.03,233.02,1e-08]
[1759745412118,68.03766257,233.03,233.02,1e-08]
[1759745412825,57.16118736,233.03,233.02,1e-08]
[1759745414161,68.03766257,233.03,233.02,1e-08]
[1759745418359,38.05766257,233.03,233.02,1e-08]
[1759745418559,68.03766257,233.03,233.02,0.70000001]
[1759745420668,68.03766257,233.03,233.02,1e-08]
[1759745422858,68.03766257,233.03,233.02,0.70000001]
[1759745423560,68.03766257,233.03,233.02,1e-08]
[1759745424493,68.69766257,233.03,233.02,1e-08]
[1759745426655,68.69766257,233.03,232.97,0.2]
[1759745426656,20.8,232.99,232.97,1e-08]
[1759745426851,42.94636961,232.98,232.97,1e-08]
[1759745427177,41.51647521,232.98,232.97,1e-08]
[1759745427374,43.60636961,232.98,232.97,1e-08]
[1759745427583,42.94636961,232.98,232.97,1e-08]
[1759745427894,10.87647521,232.94,232.89,0.2]
[1759745428054,22.8898944,232.9,232.89,0.2]
[1759745428261,52.8698944,232.9,232.89,0.2]
[1759745428912,69.1133344,232.9,232.89,0.2]
[1759745429210,69.7733344,232.9,232.89,1e-08]
[1759745429374,69.7733344,232.9,232.84,0.2]
[1759745429375,10.87647521,232.85,232.84,0.2]
[1759745429570,44.01964613,232.85,232.84,0.2]
[1759745430677,44.01989295,232.85,232.84,0.2]